fUSD/lending_fUSD_20250417
["ID","MTS","AMOUNT","RATE_DAILY","PERIOD"]
[358214553,1744848143743,9946.0,0.00025,30]
[358214554,1744848335358,-12048.44,0.0004397,30]
[358214555,1744848335426,-161.5,0.00044045,120]
[358214556,1744848335488,-151.0,0.00045,120]
[358214557,1744848335548,-155.0,0.00045,120]
[358214558,1744848335613,-250.0,0.00047843,120]
[358214559,1744848335682,-156.95,0.0004787,120]
[358214560,1744848335752,-923.071,0.00048779,84]
[358214561,1744848335816,-1235.0,0.00049,120]
[358214562,1744848335883,-500.0,0.00049931,120]
[358214563,1744848335944,-500.0,0.00049931,120]
[358214564,1744848336007,-500.0,0.00049931,120]
[358214565,1744848336066,-288.64503793,0.00049931,120]
[358214566,1744848336128,-150.0,0.00049989,120]
[358214567,1744848336188,-150.0,0.00051359,120]
[358214568,1744848336248,-151.0,0.00052,120]
[358214569,1744848336309,-200.0,0.00052627,120]
[358214570,1744848336370,-150.0,0.00052729,120]
[358214571,1744848336432,-398.15,0.00052889,30]
[358214572,1744848336496,-151.0,0.00053808,120]
[358214573,1744848336555,-1052.0,0.00053832,30]
[358214574,1744848336617,-150.0,0.00054099,120]
[358214575,1744848336679,-1052.0,0.00054387,30]
[358214576,1744848336743,-158.79,0.00054754,120]
[358214577,1744848336808,-500.0,0.00054794,120]
[358214578,1744848336868,-500.0,0.00054794,120]
[358214579,1744848336930,-500.0,0.00054794,120]
[358214580,1744848336990,-500.0,0.00054794,120]
[358214581,1744848337051,-500.0,0.00054794,120]
[358214582,1744848337114,-500.0,0.00054794,120]
[358214583,1744848337356,-500.0,0.00054794,120]
[358214584,1744848337420,-500.0,0.00054794,120]
[358214585,1744848337477,-493.18704936,0.00054794,120]
[358214586,1744848337534,-500.0,0.00054794,120]
[358214587,1744848337594,-153.69701493,0.00054794,120]
[358214588,1744848337654,-500.0,0.00054794,120]
[358214589,1744848337718,-500.0,0.00054794,120]
[358214590,1744848337781,-500.0,0.00054794,120]
[358214591,1744848337842,-500.0,0.00054794,120]
[358214592,1744848337904,-500.0,0.00054794,120]
[358214593,1744848337965,-500.0,0.00054794,120]
[358214594,1744848338027,-500.0,0.00054794,120]
[358214595,1744848338088,-500.0,0.00054794,120]
[358214596,1744848338149,-500.0,0.00054794,120]
[358214597,1744848338211,-500.0,0.00054794,120]
[358214598,1744848338273,-500.0,0.00054794,120]
[358214599,1744848338335,-500.0,0.00054794,120]
[358214600,1744848338394,-500.0,0.00054794,120]
[358214601,1744848338456,-500.0,0.00054794,120]
[358214602,1744848338515,-500.0,0.00054794,120]
[358214603,1744848338577,-500.0,0.00054794,120]
[358214604,1744848338639,-500.0,0.00054794,120]
[358214605,1744848338701,-426.96584536,0.00054794,120]
[358214606,1744848338763,-500.0,0.00054794,120]
[358214607,1744848338826,-500.0,0.00054794,120]
[358214608,1744848338886,-500.0,0.00054794,120]
[358214609,1744848338949,-500.0,0.00054794,120]
[358214610,1744848339012,-500.0,0.00054794,120]
[358214611,1744848339071,-1017.24,0.00054794,120]
[358214612,1744848339134,-1017.24,0.00054794,120]
[358214613,1744848339193,-1017.24,0.00054794,120]
[358214614,1744848339255,-1017.24,0.00054794,120]
[358214615,1744848339314,-1017.24,0.00054794,120]
[358214616,1744848339372,-1017.24,0.00054794,120]
[358214617,1744848339433,-500.0,0.00054794,120]
[358214618,1744848339491,-500.0,0.00054794,120]
[358214619,1744848339550,-500.0,0.00054794,120]
[358214620,1744848339611,-500.0,0.00054794,120]
[358214621,1744848339672,-500.0,0.00054794,120]
[358214622,1744848339739,-500.0,0.00054794,120]
[358214623,1744848339802,-500.0,0.00054794,120]
[358214624,1744848339867,-500.0,0.00054794,120]
[358214625,1744848339929,-500.0,0.00054794,120]
[358214626,1744848339994,-500.0,0.00054794,120]
[358214627,1744848340058,-500.0,0.00054794,120]
[358214628,1744848340121,-500.0,0.00054794,120]
[358214629,1744848340182,-500.0,0.00054794,120]
[358214630,1744848340243,-500.0,0.00054794,120]
[358214631,1744848340304,-500.0,0.00054794,120]
[358214632,1744848340364,-500.0,0.00054794,120]
[358214633,1744848340428,-500.0,0.00054794,120]
[358214634,1744848340490,-500.0,0.00054794,120]
[358214635,1744848340551,-500.0,0.00054794,120]
[358214636,1744848340612,-500.0,0.00054794,120]
[358214637,1744848340674,-500.0,0.00054794,120]
[358214638,1744848340741,-636.72,0.00054794,120]
[358214639,1744848340807,-500.0,0.00054794,120]
[358214640,1744848340869,-500.0,0.00054794,120]
[358214641,1744848340933,-500.0,0.00054794,120]
[358214642,1744848340993,-500.0,0.00054794,120]
[358214643,1744848341055,-500.0,0.00054794,120]
[358214644,1744848341122,-500.0,0.00054794,120]
[358214645,1744848341185,-500.0,0.00054794,120]
[358214646,1744848341248,-500.0,0.00054794,120]
[358214647,1744848341313,-500.0,0.00054794,120]
[358214648,1744848341382,-500.0,0.00054794,120]
[358214649,1744848341447,-500.0,0.00054794,120]
[358214650,1744848341511,-500.0,0.00054794,120]
[358214651,1744848341574,-500.0,0.00054794,120]
[358214652,1744848341638,-911.34,0.00054794,120]
[358214653,1744848341703,-500.0,0.00054794,120]
[358214654,1744848341765,-500.0,0.00054794,120]
[358214655,1744848341826,-512.66422861,0.00054794,120]
[358214656,1744848341887,-500.0,0.00054794,120]
[358214657,1744848341949,-156.74499104,0.00054794,120]
[358214658,1744848342010,-500.0,0.00054794,120]
[358214659,1744848342070,-500.0,0.00054794,120]
[358214660,1744848342129,-562.6715031,0.00054794,120]
[358214661,1744848342191,-500.0,0.00054794,120]
[358214662,1744848342252,-500.0,0.00054794,120]
[358214663,1744848342316,-500.0,0.00054794,120]
[358214664,1744848342379,-500.0,0.00054794,120]
[358214665,1744848342439,-500.0,0.00054794,120]
[358214666,1744848342503,-520.39888307,0.00054794,120]
[358214667,1744848342563,-512.56,0.00054794,120]
[358214668,1744848342624,-500.0,0.00054794,120]
[358214669,1744848342687,-500.0,0.00054794,120]
[358214670,1744848342747,-500.0,0.00054794,120]
[358214671,1744848342808,-500.0,0.00054794,120]
[358214672,1744848342871,-500.0,0.00054794,120]
[358214673,1744848342932,-500.0,0.00054794,120]
[358214674,1744848342995,-500.0,0.00054794,120]
[358214675,1744848343056,-625.04881686,0.00054794,120]
[358214676,1744848343116,-500.0,0.00054794,120]
[358214677,1744848343178,-500.0,0.00054794,120]
[358214678,1744848343238,-500.0,0.00054794,120]
[358214679,1744848343299,-500.0,0.00054794,120]
[358214680,1744848343359,-500.0,0.00054794,120]
[358214681,1744848343422,-500.0,0.00054794,120]
[358214682,1744848343483,-500.0,0.00054794,120]
[358214683,1744848343543,-500.0,0.00054794,120]
[358214684,1744848343603,-500.0,0.00054794,120]
[358214685,1744848343665,-624.11,0.00054794,120]
[358214686,1744848343727,-500.0,0.00054794,120]
[358214687,1744848343792,-500.0,0.00054794,120]
[358214688,1744848344012,-500.0,0.00054794,120]
[358214689,1744848344080,-533.73,0.00054794,120]
[358214690,1744848344144,-613.74,0.00054794,120]
[358214691,1744848344208,-500.0,0.00054794,120]
[358214692,1744848344268,-500.0,0.00054794,120]
[358214693,1744848344330,-500.0,0.00054794,120]
[358214694,1744848344391,-500.0,0.00054794,120]
[358214695,1744848344453,-500.0,0.00054794,120]
[358214696,1744848344515,-500.0,0.00054794,120]
[358214697,1744848344577,-500.0,0.00054794,120]
[358214698,1744848344643,-500.0,0.00054794,120]
[358214699,1744848344707,-500.0,0.00054794,120]
[358214700,1744848344772,-762.2,0.00054794,120]
[358214701,1744848344836,-500.0,0.00054794,120]
[358214702,1744848344899,-150.0,0.00054795,120]
[358214703,1744848344964,-150.0,0.00054795,120]
[358214704,1744848345028,-150.0,0.00054795,120]
[358214705,1744848345093,-150.0,0.00054795,120]
[358214706,1744848345157,-150.0,0.00054795,120]
[358214707,1744848345221,-250.0,0.00054795,120]
[358214708,1744848345284,-150.0,0.00054795,120]
[358214709,1744848345345,-150.0,0.00054795,120]
[358214710,1744848345406,-150.0,0.00054795,120]
[358214711,1744848345469,-150.0,0.00054795,120]
[358214712,1744848345534,-150.0,0.00054795,120]
[358214713,1744848345594,-250.0,0.00054795,120]
[358214714,1744848345657,-222.29687218,0.00054795,120]
[358214715,1744848345717,-150.0,0.00054795,60]
[358214716,1744848345779,-200.49700385,0.00054795,60]
[358214717,1744848345841,-200.40625731,0.00054795,120]
[358214718,1744848345901,-150.04272361,0.00054795,120]
[358214719,1744848345961,-202.59961129,0.00054795,120]
[358214720,1744848346023,-150.0,0.00054795,120]
[358214721,1744848346082,-150.0,0.00054795,120]
[358214722,1744848346144,-150.0,0.00054795,120]
[358214723,1744848346205,-150.0,0.00054795,120]
[358214724,1744848346272,-150.0,0.00054795,120]
[358214725,1744848346341,-250.0,0.00054795,120]
[358214726,1744848346407,-150.0,0.00054795,120]
[358214727,1744848346471,-150.0,0.00054795,120]
[358214728,1744848346532,-150.0,0.00054795,120]
[358214729,1744848346591,-150.0,0.00054795,120]
[358214730,1744848346653,-150.0,0.00054795,120]
[358214731,1744848346716,-250.0,0.00054795,120]
[358214732,1744848346778,-150.0,0.00054795,120]
[358214733,1744848346842,-178.70857312,0.00054795,120]
[358214734,1744848346905,-1052.0,0.00054942,30]
[358214735,1744848346970,-150.0,0.00055469,120]
[358214736,1744848347035,-400.0,0.0005547,30]
[358214737,1744848347101,-400.0,0.0005547,30]
[358214738,1744848347167,-400.0,0.0005547,30]
[358214739,1744848347231,-401.73595618,0.0005547,30]
[358214740,1744848347300,-800.0,0.00055496,35]
[358214741,1744848347362,-819.28581872,0.00055496,35]
[358214742,1744848347425,-800.0,0.00055496,35]
[358214743,1744848347483,-800.0,0.00055496,35]
[358214744,1744848347545,-800.0,0.00055496,35]
[358214745,1744848347606,-800.0,0.00055496,35]
[358214746,1744848347671,-800.0,0.00055496,35]
[358214747,1744848347732,-800.0,0.00055496,45]
[358214748,1744848347794,-800.0,0.00055496,35]
[358214749,1744848347857,-800.0,0.00055496,35]
[358214750,1744848347920,-800.0,0.00055496,35]
[358214751,1744848347982,-800.0,0.00055496,35]
[358214752,1744848348043,-800.0,0.00055496,35]
[358214753,1744848348105,-800.0,0.00055497,35]
[358214754,1744848348180,-800.0,0.00055497,35]
[358214755,1744848348250,-800.0,0.00055497,35]
[358214756,1744848348318,-800.0,0.00055497,35]
[358214757,1744848348388,-800.0,0.00055497,35]
[358214758,1744848348451,-1052.0,0.00055497,30]
[358214759,1744848348513,-394.04515746,0.00055497,30]
[358214760,1744848348577,-2425.35794597,0.000555,120]
[358214761,1744848348641,-151.0,0.00055616,120]
[358214762,1744848348702,-464.06130296,0.00055961,120]
[358214763,1744848348766,-1017.24,0.00055961,120]
[358214764,1744848348829,-500.0,0.00055961,120]
[358214765,1744848348890,-500.0,0.00055961,120]
[358214766,1744848348951,-1052.0,0.00056052,30]
[358214767,1744848349014,-1156.5,0.00056247,120]
[358214768,1744848349079,-1017.24,0.0005646,120]
[358214769,1744848349142,-500.0,0.0005646,120]
[358214770,1744848349204,-500.0,0.0005646,120]
[358214771,1744848349267,-854.25066532,0.000565,120]
[358214772,1744848349330,-1052.0,0.00056607,30]
[358214773,1744848349393,-150.0,0.00056839,120]
[358214774,1744848349453,-400.0,0.0005697,30]
[358214775,1744848349513,-2000.0,0.00057,90]
[358214776,1744848349575,-1052.0,0.00057162,30]
[358214777,1744848349638,-151.0,0.00057425,120]
[358214778,1744848349701,-500.0,0.00057458,120]
[358214779,1744848349764,-500.0,0.00057534,120]
[358214780,1744848349827,-195.41407045,0.00057534,120]
[358214781,1744848349887,-500.0,0.00057534,120]
[358214782,1744848349948,-500.0,0.00057534,120]
[358214783,1744848350012,-950.97,0.00057534,120]
[358214784,1744848350075,-911.34,0.00057534,120]
[358214785,1744848350137,-500.0,0.00057534,120]
[358214786,1744848350196,-500.0,0.00057534,120]
[358214787,1744848350257,-500.0,0.00057534,120]
[358214788,1744848350315,-500.0,0.00057534,120]
[358214789,1744848350374,-512.56,0.00057534,120]
[358214790,1744848350436,-500.0,0.00057534,120]
[358214791,1744848350495,-500.0,0.00057534,120]
[358214792,1744848350659,-500.0,0.00057534,120]
[358214793,1744848350727,-500.0,0.00057534,120]
[358214794,1744848350791,-500.0,0.00057534,120]
[358214795,1744848350850,-500.0,0.00057534,120]
[358214796,1744848350910,-500.0,0.00057534,120]
[358214797,1744848350971,-624.11,0.00057534,120]
[358214798,1744848351031,-500.0,0.00057534,120]
[358214799,1744848351090,-500.0,0.00057534,120]
[358214800,1744848351147,-158.79330777,0.00057534,120]
[358214801,1744848351205,-500.0,0.00057534,120]
[358214802,1744848351261,-267.09752282,0.00057534,120]
[358214803,1744848351318,-500.0,0.00057534,120]
[358214804,1744848351378,-500.0,0.00057534,120]
[358214805,1744848351437,-500.0,0.00057534,120]
[358214806,1744848351495,-500.0,0.00057534,120]
[358214807,1744848351555,-500.0,0.00057534,120]
[358214808,1744848351614,-762.2,0.00057534,120]
[358214809,1744848351677,-150.0,0.00058209,120]
[358214810,1744848351742,-1017.24,0.00058899,120]
[358214811,1744848351809,-500.0,0.00058899,120]
[358214812,1744848351876,-500.0,0.00058899,120]
[358214813,1744848351944,-151.0,0.00059233,120]
[358214814,1744848352011,-150.0,0.00059578,120]
[358214815,1744848352077,-2000.0,0.000597,90]
[358214816,1744848352144,-250.0,0.000597,30]
[358214817,1744848352206,-950.58056066,0.000597,30]
[358214818,1744848352267,-325.0,0.0006,30]
[358214819,1744848352330,-500.0,0.00060273,120]
[358214820,1744848352393,-500.0,0.00060273,120]
[358214821,1744848352453,-500.0,0.00060273,120]
[358214822,1744848352516,-950.97,0.00060273,120]
[358214823,1744848352578,-911.34,0.00060273,120]
[358214824,1744848352641,-500.0,0.00060273,120]
[358214825,1744848352704,-500.0,0.00060273,120]
[358214826,1744848352765,-500.0,0.00060273,120]
[358214827,1744848352826,-512.56,0.00060273,120]
[358214828,1744848352887,-500.0,0.00060273,120]
[358214829,1744848352947,-500.0,0.00060273,120]
[358214830,1744848353010,-500.0,0.00060273,120]
[358214831,1744848353071,-500.0,0.00060273,120]
[358214832,1744848353133,-500.0,0.00060273,120]
[358214833,1744848353194,-500.0,0.00060273,120]
[358214834,1744848353254,-624.11,0.00060273,120]
[358214835,1744848353316,-500.0,0.00060273,120]
[358214836,1744848353377,-500.0,0.00060273,120]
[358214837,1744848353440,-500.0,0.00060273,120]
[358214838,1744848353502,-500.0,0.00060273,120]
[358214839,1744848353562,-500.0,0.00060273,120]
[358214840,1744848353624,-762.2,0.00060273,120]
[358214841,1744848353686,-150.0,0.00060948,120]
[358214842,1744848353750,-800.0,0.00060975,47]
[358214843,1744848353812,-151.0,0.00061041,120]
[358214844,1744848353871,-1921.0,0.00062,120]
[358214845,1744848353934,-150.0,0.00062318,120]
[358214846,1744848353996,-2000.0,0.000625,90]
[358214847,1744848354064,-151.0,0.00062849,120]
[358214848,1744848354127,-300.54367026,0.0006297,60]
[358214849,1744848354189,-400.0,0.0006297,60]
[358214850,1744848354249,-500.0,0.00063013,120]
[358214851,1744848354312,-500.0,0.00063013,120]
[358214852,1744848354378,-500.0,0.00063013,120]
[358214853,1744848354442,-950.97,0.00063013,120]
[358214854,1744848354507,-500.0,0.00063013,120]
[358214855,1744848354568,-500.0,0.00063013,120]
[358214856,1744848354634,-500.0,0.00063013,120]
[358214857,1744848354697,-512.56,0.00063013,120]
[358214858,1744848354762,-500.0,0.00063013,120]
[358214859,1744848354824,-500.0,0.00063013,120]
[358214860,1744848354886,-500.0,0.00063013,120]
[358214861,1744848354950,-500.0,0.00063013,120]
[358214862,1744848355012,-500.0,0.00063013,120]
[358214863,1744848355072,-500.0,0.00063013,120]
[358214864,1744848355136,-624.11,0.00063013,120]
[358214865,1744848355202,-500.0,0.00063013,120]
[358214866,1744848355269,-500.0,0.00063013,120]
[358214867,1744848355331,-500.0,0.00063013,120]
[358214868,1744848355392,-500.0,0.00063013,120]
[358214869,1744848355453,-342.3,0.00063013,120]
[358214870,1744848355514,-762.2,0.00063013,120]
[358214871,1744848355576,-150.0,0.00063688,120]
[358214872,1744848355637,-923.071,0.00064084,120]
[358214873,1744848355699,-2000.0,0.0006457,120]
[358214874,1744848355762,-151.0,0.00064658,120]
[358214875,1744848355827,-156.95,0.00064986,120]
[358214876,1744848355894,-147950.41517611,0.00065,120]
[358214877,1744848355956,-150.0,0.00065058,120]
[358214878,1744848356019,-1200.0,0.00065068,120]
[358214879,1744848356080,-2000.0,0.000652,120]
[358214880,1744848356141,-1200.0,0.00065342,120]
[358214881,1744848356204,-1200.0,0.00065616,120]
[358214882,1744848356263,-300.0,0.0006567,90]
[358214883,1744848356324,-400.0,0.0006567,90]
[358214884,1744848356387,-169.0,0.000657,30]
[358214885,1744848356447,-158.0,0.000657,30]
[358214886,1744848356511,-166.25194521,0.000657,30]
[358214887,1744848356572,-158.0,0.000657,30]
[358214888,1744848356636,-158.0,0.000657,30]
[358214889,1744848356702,-158.35416969,0.000657,30]
[358214890,1744848356767,-150.0,0.000657,120]
[358214891,1744848356834,-150.0,0.00065752,120]
[358214892,1744848356898,-200.25827935,0.00065752,120]
[358214893,1744848356960,-150.0,0.00065752,120]
[358214894,1744848357023,-150.0,0.00065752,120]
[358214895,1744848357085,-150.0,0.00065752,120]
[358214896,1744848357153,-150.0,0.00065752,120]
[358214897,1744848357372,-150.0,0.00065752,120]
[358214898,1744848357443,-250.0,0.00065752,120]
[358214899,1744848357518,-150.0,0.00065752,120]
[358214900,1744848357593,-150.0,0.00065752,120]
[358214901,1744848357672,-150.0,0.00065752,120]
[358214902,1744848357749,-150.0,0.00065752,120]
[358214903,1744848357821,-150.0,0.00065752,120]
[358214904,1744848357888,-150.0,0.00065752,120]
[358214905,1744848357951,-174.0,0.00065752,120]
[358214906,1744848358013,-150.0,0.00065752,120]
[358214907,1744848358075,-150.0,0.00065752,120]
[358214908,1744848358135,-150.0,0.00065752,120]
[358214909,1744848358195,-150.0,0.00065752,120]
[358214910,1744848358255,-150.0,0.00065752,120]
[358214911,1744848358313,-250.0,0.00065752,120]
[358214912,1744848358378,-500.0,0.00065752,120]
[358214913,1744848358437,-500.0,0.00065752,120]
[358214914,1744848358499,-500.0,0.00065752,120]
[358214915,1744848358558,-500.0,0.00065752,120]
[358214916,1744848358619,-240.0,0.00065752,120]
[358214917,1744848358680,-150.0,0.00065752,120]
[358214918,1744848358740,-200.65042279,0.00065752,120]
[358214919,1744848358801,-150.0,0.00065752,120]
[358214920,1744848358866,-150.0,0.00065752,120]
[358214921,1744848358926,-500.0,0.00065752,120]
[358214922,1744848358984,-621.32652505,0.00065752,120]
[358214923,1744848359043,-152.37154664,0.00065752,120]
[358214924,1744848359101,-150.0,0.00065752,120]
[358214925,1744848359159,-150.0,0.00065752,120]
[358214926,1744848359215,-200.0,0.00065753,30]
[358214927,1744848359273,-500.0,0.00065753,120]
[358214928,1744848359332,-500.0,0.00065753,120]
[358214929,1744848359391,-950.97,0.00065753,120]
[358214930,1744848359448,-500.0,0.00065753,120]
[358214931,1744848359514,-500.0,0.00065753,120]
[358214932,1744848359576,-500.0,0.00065753,120]
[358214933,1744848359639,-512.56,0.00065753,120]
[358214934,1744848359705,-500.0,0.00065753,120]
[358214935,1744848359770,-500.0,0.00065753,120]
[358214936,1744848359836,-500.0,0.00065753,120]
[358214937,1744848359900,-500.0,0.00065753,120]
[358214938,1744848359964,-500.0,0.00065753,120]
[358214939,1744848360029,-624.11,0.00065753,120]
[358214940,1744848360099,-197.85308618,0.00065753,120]
[358214941,1744848360166,-500.0,0.00065753,120]
[358214942,1744848360236,-762.2,0.00065753,120]
[358214943,1744848360305,-1200.0,0.0006589,120]
[358214944,1744848360371,-660.37,0.00065937,120]
[358214945,1744848360438,-2000.0,0.0006596,32]
[358214946,1744848360500,-430.8389961,0.00066,120]
[358214947,1744848360564,-500.0,0.00066164,120]
[358214948,1744848360624,-500.0,0.00066164,120]
[358214949,1744848360688,-1200.0,0.00066164,120]
[358214950,1744848360750,-150.0,0.00066428,120]
[358214951,1744848360812,-800.0,0.00066455,120]
[358214952,1744848360875,-151.0,0.00066466,120]
[358214953,1744848360935,-500.0,0.00066712,120]
[358214954,1744848360995,-500.0,0.00066712,120]
[358214955,1744848361052,-1200.0,0.00066712,120]
[358214956,1744848361111,-500.0,0.0006726,120]
[358214957,1744848361173,-1200.0,0.0006726,120]
[358214958,1744848361231,-1156.5,0.0006748,120]
[358214959,1744848361291,-150.0,0.00067798,120]
[358214960,1744848361351,-500.0,0.00067808,120]
[358214961,1744848361411,-1200.0,0.00067808,120]
[358214962,1744848361471,-2000.0,0.0006783,32]
[358214963,1744848361530,-2000.0,0.000679,120]
[358214964,1744848361593,-1017.24,0.00067999,120]
[358214965,1744848361655,-1017.24,0.00067999,120]
[358214966,1744848361716,-1017.24,0.00067999,120]
[358214967,1744848361781,-1017.24,0.00067999,120]
[358214968,1744848361846,-1017.24,0.00067999,120]
[358214969,1744848361910,-1017.24,0.00067999,120]
[358214970,1744848361976,-1017.24,0.00067999,120]
[358214971,1744848362039,-1017.24,0.00067999,120]
[358214972,1744848362107,-1017.24,0.00067999,120]
[358214973,1744848362174,-1017.24,0.00067999,120]
[358214974,1744848362240,-1017.24,0.00067999,120]
[358214975,1744848362307,-1017.24,0.00067999,120]
[358214976,1744848362371,-1017.24,0.00067999,120]
[358214977,1744848362438,-1017.24,0.00067999,120]
[358214978,1744848362505,-1017.42,0.00067999,120]
[358214979,1744848362566,-500.0,0.00067999,120]
[358214980,1744848362630,-500.0,0.00067999,120]
[358214981,1744848362699,-500.0,0.00067999,120]
[358214982,1744848362769,-500.0,0.00067999,120]
[358214983,1744848362838,-500.0,0.00067999,120]
[358214984,1744848362902,-243.25995556,0.00067999,120]
[358214985,1744848362965,-500.0,0.00067999,120]
[358214986,1744848363035,-500.0,0.00067999,120]
[358214987,1744848363103,-500.0,0.00067999,120]
[358214988,1744848363168,-500.0,0.00067999,120]
[358214989,1744848363231,-500.0,0.00067999,120]
[358214990,1744848363297,-500.0,0.00067999,120]
[358214991,1744848363361,-500.0,0.00067999,120]
[358214992,1744848363427,-500.0,0.00067999,120]
[358214993,1744848363491,-255.85,0.00067999,120]
[358214994,1744848363555,-26881.0,0.00068,120]
[358214995,1744848363621,-1000.0,0.00068199,120]
[358214996,1744848363686,-151.0,0.00068274,120]
[358214997,1744848363755,-500.0,0.00068356,120]
[358214998,1744848363819,-1200.0,0.00068356,120]
[358214999,1744848363885,-500.0,0.00068493,120]
[358215000,1744848363948,-500.0,0.00068493,120]
[358215001,1744848364016,-950.97,0.00068493,120]
[358215002,1744848364212,-500.0,0.00068493,120]
[358215003,1744848364275,-500.0,0.00068493,120]
[358215004,1744848364340,-500.0,0.00068493,120]
[358215005,1744848364402,-512.56,0.00068493,120]
[358215006,1744848364465,-500.0,0.00068493,120]
[358215007,1744848364529,-500.0,0.00068493,120]
[358215008,1744848364591,-500.0,0.00068493,120]
[358215009,1744848364656,-624.77,0.00068493,120]
[358215010,1744848364719,-500.0,0.00068493,120]
[358215011,1744848364782,-624.11,0.00068493,120]
[358215012,1744848364847,-500.0,0.00068493,120]
[358215013,1744848364911,-762.2,0.00068493,120]
[358215014,1744848365486,152.37154664,0.00068193,30]
[358215015,1744848365577,163.21157063,0.00054694,57]
[358215016,1744848365724,500.0,0.00054794,120]
[358215017,1744848374202,3567484.66438986,0.00068493,62]
[358215018,1744848396183,-500.0,0.00049499,31]
[358215019,1744848396246,-198.73833755,0.00049499,120]
[358215020,1744848396312,-500.0,0.00049499,31]
[358215021,1744848396376,-500.0,0.00049499,31]
[358215022,1744848396443,-463.69389547,0.00049499,31]
[358215023,1744848396508,-500.0,0.00049499,31]
[358215024,1744848396570,-500.0,0.00049499,31]
[358215025,1744848396630,-500.0,0.00049499,31]
[358215026,1744848396694,-500.0,0.00049499,31]
[358215027,1744848396755,-500.0,0.00049499,31]
[358215028,1744848396820,-500.0,0.00049499,31]
[358215029,1744848396885,-500.0,0.00049499,31]
[358215030,1744848396949,-500.0,0.00049499,31]
[358215031,1744848397012,-500.0,0.00049499,31]
[358215032,1744848397074,-500.0,0.00049499,31]
[358215033,1744848397137,-500.0,0.00049499,31]
[358215034,1744848397199,-500.0,0.00049499,31]
[358215035,1744848397262,-500.0,0.00049499,31]
[358215036,1744848397333,-500.0,0.00054794,120]
[358215037,1744848397395,-534.79548534,0.00054794,120]
[358215038,1744848397542,500.0,0.00054794,120]
[358215039,1744848397610,500.0,0.00057534,120]
[358215040,1744848397679,500.0,0.00060273,120]
[358215041,1744848398284,500.0,0.00063013,120]
[358215042,1744848398551,500.0,0.00065753,120]
[358215043,1744848398816,500.0,0.00068493,120]
[358215044,1744848401139,500.0,0.00054794,120]
[358215045,1744848401372,500.0,0.00057534,120]
[358215046,1744848401632,500.0,0.00060273,120]
[358215047,1744848401877,500.0,0.00063013,120]
[358215048,1744848402454,563.37,0.00065753,120]
[358215049,1744848403607,500.0,0.00054794,120]
[358215050,1744848403875,500.0,0.00057534,120]
[358215051,1744848404836,500.0,0.00060273,120]
[358215052,1744848404905,500.0,0.00054794,120]